Cogmind - Beta 11.1 @@@ ROGUE MODE // 2022.06.24 @ 23:30:09 Player: Savant Result: Destroyed by S-27 Virus with Autogun Performance ------------- Evolutions (5) 2500 Regions Visited (22) 4400 Robots Destroyed (274) 1370 Value Destroyed (9054) 9054 Prototype IDs (74) 1480 Alien Tech Used (0) 0 Bonus (1929) 1929 TOTAL SCORE: 20733 Bonus ------- High Alert Combat Kills 489 Follower Combat Kills 1390 Network Hubs Disabled 200 Met Data Miner 300 Met Warlord at Base 500 MAIN.C Attacked Warlord 500 Warlord Defense Kills 346 A7 Reached Mainframe 300 Friendly Fire -2096 Cogmind --------- Core Integrity 0/1000 Matter 279/300 Energy 100/100 System Corruption 6% Temperature Cool (0) Movement Walking (190) Ox1 Location -4/Proximity Caves Parts ------- > --- POWER (1) -------- (None) > --- PROPULSION (5) --- Myomer Leg Gyrokinetic Inverter > --- UTILITY (9) ------ Large Storage Unit Advanced Sensor Array Advanced Signal Interpreter Advanced Melee Analysis Suite Centrium Medium Armor Plating Centrium Medium Armor Plating Advanced System Shield Mapping Drone Bay (2/3) > --- WEAPON (2) ------- Shock Maul Ionic Axe > --- INVENTORY (15) --- Vortex Chain Reactor Experimental Coolant Injector Long-range Terrain Scanner Experimental Phase Shifter Advanced Hacking Suite System Purifier Improved Trap Extractor (0/6) Cooled Plasma Cannon Molecular Deconstructor Peak State ------------ > --- POWER ------------ Micro Fission Core > --- PROPULSION ------- Gravmag Array Cooled Antigrav System Antigrav Array > --- UTILITY ---------- Large Storage Unit Advanced Signal Interpreter Advanced Melee Analysis Suite Centrium Medium Armor Plating Light Regenerative Plating Improved Hacking Suite Improved Hacking Suite Advanced Hacking Suite Advanced System Shield > --- WEAPON ----------- Vortex Rail Ionic Axe > --- INVENTORY -------- Vortex Chain Reactor Gyrokinetic Inverter Experimental Coolant Injector Advanced Sensor Array Long-range Terrain Scanner Experimental Phase Shifter Centrium Medium Armor Plating Advanced Hacking Suite System Purifier Improved Trap Extractor Mapping Drone Bay Cooled Plasma Cannon Shock Maul Sapper Charge [Rating: 116] Favorites ----------- Power Micro Fission Core Engine Improved Deuterium Engine Power Core Micro Fission Core Reactor Antimatter Reactor Propulsion Combat Airjet Treads Light Treads Leg Flexi-carbon Leg Wheel Armored Wheel Hover Unit Combat Airjet Flight Unit Cooled Impulse Thruster Utility Large Storage Unit Device Advanced Sensor Array Storage Large Storage Unit Processor Improved Signal Interpreter Hackware Improved Hacking Suite Protection Light Regenerative Plating Weapon Cooled Particle Cannon Energy Gun Heavy EM Pulse Gun Energy Cannon Cooled Particle Cannon Ballistic Gun Improved Assault Rifle Launcher Scatter Rocket Array Special Weapon Plasma Flamer Impact Weapon Shock Maul Slashing Weapon Ionic Axe Piercing Weapon Spear Special Melee Weapon Datajack Build | -11 -10 -10 -9 -9 -8 -7 -7 -7 -7 -6 -6 -6 -6 -6 -6 -6 -6 -5 -5 -5 -5 -4 ------- Run | Scr Mat Min Mat Min Mat Fac Low Low Dat Pro Fac Was Fac Ext Cet Arc Hub Fac Upp Upp War Pro Slots Evolved 10 | . . . 2 . 2 2 . . . . 2 . . . . . . 2 . . . . Power . | . . . . . . . . . . . . . . . . . . . . . . . Propulsion 3 | . . . . . 1 1 . . . . 1 . . . . . . . . . . . Utility 7 | . . . 2 . 1 1 . . . . 1 . . . . . . 2 . . . . Weapon . | . . . . . . . . . . . . . . . . . . . . . . . Parts Attached 539 | 6 10 3 44 12 37 10 16 20 1 16 103 7 55 9 6 5 18 86 15 25 21 14 Power 26 | 1 . 1 3 1 . 1 1 . . . 6 3 1 1 . . . 7 . . . . Engine 10 | 1 . . 1 1 . 1 . . . . 2 . 1 1 . . . 2 . . . . Core 15 | . . 1 2 . . . 1 . . . 4 2 . . . . . 5 . . . . Reactor 1 | . . . . . . . . . . . . 1 . . . . . . . . . . Propulsion 92 | 2 1 1 17 6 11 4 1 2 . 3 15 2 5 . 2 . . 14 . . 5 1 Treads 24 | 1 . . 10 4 6 . . . . . 3 . . . . . . . . . . . Leg 7 | . . . . . . . . . . 3 2 . . . . . . . . . 1 1 Wheel 17 | 1 1 1 7 2 5 . . . . . . . . . . . . . . . . . Hover 42 | . . . . . . 4 1 2 . . 10 1 5 . 2 . . 14 . . 3 . Flight 2 | . . . . . . . . . . . . 1 . . . . . . . . 1 . Utility 263 | 1 2 . 6 2 12 4 12 10 . 9 50 1 32 7 2 3 14 47 13 19 9 8 Device 164 | . . . 5 1 5 1 8 8 . 7 35 1 27 3 1 1 9 21 7 14 6 4 Storage 10 | 1 1 . . . 2 1 . . . 1 1 . . . . . . 2 1 . . . Processor 10 | . . . 1 . 2 1 1 . . . . . 2 . . . 1 2 . . . . Hackware 18 | . . . . . 1 1 1 . . . 4 . 1 . . 1 1 8 . . . . Protection 61 | . 1 . . 1 2 . 2 2 . 1 10 . 2 4 1 1 3 14 5 5 3 4 Artifact . | . . . . . . . . . . . . . . . . . . . . . . . Weapon 158 | 2 7 1 18 3 14 1 2 8 1 4 32 1 17 1 2 2 4 18 2 6 7 5 Energy Gun 15 | 2 6 1 . . 1 . . . . . 1 . 1 . 1 . . . . . 2 . Energy Cannon 58 | . . . 3 2 7 . 1 3 1 2 15 . 12 . . 1 1 5 . 2 1 2 Ballistic Gun 15 | . 1 . 9 1 1 . . . . . 1 . . . . . 1 1 . . . . Ballistic Cannon . | . . . . . . . . . . . . . . . . . . . . . . . Launcher 10 | . . . 1 . 2 . . . . . 1 . 1 . . . . 2 1 1 1 . Special Weapon 6 | . . . 2 . . . . . . . 3 . . . . . . 1 . . . . Impact Weapon 15 | . . . 3 . 3 . . . . . 1 . . . . . . 3 1 1 2 1 Slashing Weapon 6 | . . . . . . . . . . . . . . . . . . 1 . 2 1 2 Piercing Weapon 31 | . . . . . . 1 1 3 . 2 10 1 3 1 1 1 2 5 . . . . Special Melee Weapon 2 | . . . . . . . . 2 . . . . . . . . . . . . . . Unidentified Prototypes 18 | . . . 2 . 3 . 1 . . . . . . . 1 . 1 2 . . 8 . Corrupted Parts 6 | . . . . . . . . . . 2 1 . . . . . 1 1 . . . 1 System Corruption 45 | . . . . . . . . . . 16 10 . . . . . 10 3 . . . 6 Parts Lost 67 | . 2 . 6 8 4 . 3 1 . 6 10 . . 2 . . 4 11 . . 4 6 Power 12 | . . . 3 . . . 1 . . 1 2 . . 1 . . . 3 . . . 1 Propulsion 25 | . . . . 2 2 . . 1 . 4 6 . . . . . 3 4 . . 2 1 Utility 20 | . . . 1 3 2 . 2 . . . 2 . . 1 . . . 4 . . 1 4 Weapon 10 | . 2 . 2 3 . . . . . 1 . . . . . . 1 . . . 1 . Highest Loss Streak 5 | . 1 . 1 2 2 . 2 1 . 5 3 . . 1 . . 4 2 . . 3 3 To Critical Strikes . | . . . . . . . . . . . . . . . . . . . . . . . Average Slot Usage (%) 90 | . 96 99 99 94 97 95 96 92 100 71 91 99 93 92 97 100 99 86 88 87 86 78 Engine 2 | . 14 2 . 11 9 1 . . . . 1 . 1 5 6 6 6 1 . . . . Core 3 | . . 10 10 . . 5 6 7 7 . 3 3 . . . . . 3 5 5 5 5 Treads 3 | . 14 14 11 14 9 . . . . . 3 . . . . . . . . . . . Leg 1 | . . . . . . . . . . 12 5 . . . . . . . . . . . Wheel 3 | . 14 14 10 7 17 . . . . . . . . . . . . . . . . . Hover 13 | . . . . . . 29 30 28 30 . 18 33 27 26 30 33 32 18 17 17 16 10 Device 10 | . . . 21 21 16 15 15 14 15 14 5 6 6 4 6 10 11 7 9 9 6 10 Storage 7 | . 14 14 11 11 9 7 7 7 7 7 6 6 6 6 6 6 6 5 5 5 5 5 Processor 8 | . . . 9 2 4 7 12 15 15 15 9 6 6 13 13 8 6 5 11 11 11 11 Hackware 13 | . . . . . 3 14 8 7 7 7 21 20 25 11 6 6 12 26 23 23 23 22 Protection 3 | . 11 14 1 3 8 . . . . . 1 6 . 9 13 13 7 3 1 1 4 . Energy Gun 2 | . 24 28 3 . . . . . . . . . . . 6 6 6 . . . 2 . Energy Cannon 5 | . . . 9 11 15 7 7 6 . 5 4 6 9 6 5 . . 1 . . . . Ballistic Gun 1 | . 3 . 8 10 . . . . . . . . . . . . . . . . . . Impact Weapon 1 | . . . . . 1 . . . . . . . . . . . . 2 4 5 3 4 Piercing Weapon 2 | . . . . . . 2 3 . 7 6 4 5 3 5 . 5 5 3 . . . . Naked Turns . | . . . . . . . . . . . . . . . . . . . . . . . Heaviest Build 110 | 13 32 32 39 44 110 101 44 49 35 33 54 54 54 53 54 55 59 50 43 43 53 53 Greatest Support 61 | 10 20 12 20 48 24 35 35 35 35 50 60 58 58 56 57 57 57 61 58 58 59 37 Greatest Overweight (x) 8 | 1 2 2 3 3 8 2 1 1 . 3 2 1 . . . . 2 1 . . . 2 Average Overweight (x) . | . 1 2 2 1 4 . . . . . . . . . . . . . . . . . Largest Inventory Capacity 25 | 8 15 15 15 15 25 25 15 15 15 15 15 15 15 15 15 15 15 15 15 15 15 15 Average Capacity 15 | 6 11 15 15 15 24 15 15 15 15 14 15 15 15 15 15 15 15 15 15 15 15 15 Most Carried 25 | 4 14 15 15 15 25 24 15 15 15 15 15 15 15 15 15 15 15 15 15 15 15 15 Average Carried 15 | 2 9 14 14 14 22 15 14 14 15 14 14 14 14 14 14 14 15 13 15 14 14 14 Final Capacity 25 | 8 15 15 15 15 25 15 15 15 15 15 15 15 15 15 15 15 15 15 15 15 15 15 Final Carried 25 | 4 14 15 15 13 25 15 15 15 15 15 14 15 15 15 15 15 15 15 15 15 14 11 Class Distribution -------------------- 29% | Hacker-Mutant 25% | Mutant 9% | Hacker-Scout 6% | Scavenger-Mutant 5% | Assassin 4% | Scout 4% | Wizard-Mutant 3% | Hacker-Assassin Dominant Class ---------------- Mutant | -10/Materials Mutant | -10/Mines Mutant | -9/Materials Mutant | -9/Mines Mutant | -8/Materials Commander-Scout | -7/Factory Scout | -7/Lower Caves Scout | -7/Lower Caves Scout | -7/Data Miner Assassin | -6/Proximity Caves Hacker-Mutant | -6/Factory Hacker-Mutant | -6/Waste Hacker-Mutant | -6/Factory Hacker-Mutant | -6/Extension Scavenger-Mutant | -6/Cetus Scavenger-Mutant | -6/Archives Scavenger-Mutant | -6/Hub_04(d) Wizard-Mutant | -5/Factory Hacker-Scout | -5/Upper Caves Hacker-Mutant | -5/Upper Caves Hacker-Mutant | -5/Warlord Hacker-Mutant | -4/Proximity Caves Resources | -11 -10 -10 -9 -9 -8 -7 -7 -7 -7 -6 -6 -6 -6 -6 -6 -6 -6 -5 -5 -5 -5 -4 ----------- Run | Scr Mat Min Mat Min Mat Fac Low Low Dat Pro Fac Was Fac Ext Cet Arc Hub Fac Upp Upp War Pro Matter Collected 6705 | 254 229 93 630 278 376 100 150 200 . 219 1034 158 392 315 60 50 110 1128 143 397 290 99 Remotely . | . . . . . . . . . . . . . . . . . . . . . . . Salvage Created 10458 | . 446 15 1552 554 1405 227 369 110 . 237 1632 . 470 356 134 256 278 1862 53 296 39 167 Parts 521 | . 40 2 92 23 73 8 9 5 . 5 98 . 17 21 2 21 18 67 6 10 . 4 Haulers Intercepted 9 | . . . 3 . 4 . 1 . . . . . . . . . . 1 . . . . Recyclers Shooed 8 | . . . 2 1 1 . . . . . 2 . . . . . . 2 . . . . Parts Field Recycled . | . . . . . . . . . . . . . . . . . . . . . . . Retrieved Matter . | . . . . . . . . . . . . . . . . . . . . . . . Parts Self-Destructed 49 | . . . . . . . 9 6 . 5 . . . . . . . . 5 19 . 5 Prevented 21 | . . . . . . . . 6 . 3 . . . . . . . . . 4 . 8 Kills | -11 -10 -10 -9 -9 -8 -7 -7 -7 -7 -6 -6 -6 -6 -6 -6 -6 -6 -5 -5 -5 -5 -4 ------- Run | Scr Mat Min Mat Min Mat Fac Low Low Dat Pro Fac Was Fac Ext Cet Arc Hub Fac Upp Upp War Pro Combat Hostiles Destroyed 189 | . 11 1 27 19 26 1 5 2 . 2 29 . 8 4 1 . 2 31 5 8 2 5 Melee 42 | . . . 1 . . 1 . . . 1 7 . 1 2 . . 1 21 1 4 . 2 Guns 26 | . 9 1 10 4 . . . . . . 2 . . . . . . . . . . . Cannons 78 | . . . 15 15 19 . 5 2 . 1 13 . 3 2 . . 1 1 . . . 1 AOE 29 | . 2 . 1 . 4 . . . . . 6 . 2 . . . . 5 4 4 1 . Classes Destroyed 18 | . 5 . 3 4 2 . 1 1 . . 1 . . . . . . . . . 1 . Worker 19 | . 2 . 1 1 1 . . . . . 6 . 1 . . . 3 4 . . . . Builder 18 | . . . . . 2 1 . . . . 5 . 2 2 . . 1 5 . . . . Hauler 9 | . . . 3 . 4 . 1 . . . . . . . . . . 1 . . . . Recycler 11 | . . . 3 . 1 2 . . . . 3 . . . . . . 2 . . . . Minesweeper 2 | . . . . . . . . 1 . . . . . . . . . . . 1 . . Mechanic 1 | . . . . . . . . . . . 1 . . . . . . . . . . . Operator 14 | . 3 . 2 . 1 . . . . . . . . 1 . 7 . . . . . . Watcher 18 | . 1 . 3 . 5 . . . . . 3 . . 1 . . 3 2 . . . . Swarmer 53 | . 6 1 3 . 10 . . . . . 9 . . . . . . 10 5 6 . 3 Grunt 63 | . 5 . 18 6 7 1 4 2 . . 4 . 4 . . . . 11 . 1 . . Brawler 2 | . . . . 1 1 . . . . . . . . . . . . . . . . . Duelist 4 | . . . . 2 1 . . . . . . . 1 . . . . . . . . . Sentry 26 | . . . 6 . 6 . . . . . 5 . 1 3 . . 2 2 . 1 . . Demolisher 3 | . . . . 2 . . . . . . . . . . . . . . . . 1 . Hunter 11 | . . . . . 1 . . . . 2 4 . 1 . . . . 2 . . . 1 Programmer 17 | . . . . . . . 1 . . . 7 . 1 1 . . . 6 . . . 1 Cetus Guard 1 | . . . . . . . . . . . . . . . 1 . . . . . . . Striker 1 | . . . . . . . . . . . . . . . . . . . . . 1 . Packrat 1 | . . . . . . . . . . . . . . . . . . . . 1 . . Assembled 8 | . . . . 8 . . . . . . . . . . . . . . . . . . Best Kill Streak 10 | . 6 1 5 3 7 2 4 1 . 1 10 . 2 2 1 2 2 6 4 4 1 3 Combat Bots Only 7 | . 4 1 3 3 7 1 4 1 . 1 5 . 2 2 1 . 2 6 4 4 1 3 Max Kills in Single Turn 9 | . 2 1 2 2 3 1 1 1 . 1 9 . 2 1 1 1 2 4 4 4 1 1 Gunslinging 1 | . . . 1 . . . . . . . . . . . . . . . . . . . Exploded 4 | . 1 . 1 . 2 . . . . . 2 . 2 . . . . 2 4 4 1 . Melee 1 | . . . 1 . . 1 . . . 1 1 . 1 1 . . 1 1 1 1 . 1 Uniques/NPCs Destroyed 1 | . . . . . . . . . . . . . . . 1 . . . . . . . A7 (-6/Cetus) Combat | -11 -10 -10 -9 -9 -8 -7 -7 -7 -7 -6 -6 -6 -6 -6 -6 -6 -6 -5 -5 -5 -5 -4 -------- Run | Scr Mat Min Mat Min Mat Fac Low Low Dat Pro Fac Was Fac Ext Cet Arc Hub Fac Upp Upp War Pro Damage Taken 16396 | . 313 36 1024 1254 630 . 562 85 . 815 2662 . 641 1074 150 . 954 3580 187 190 1566 673 Core 2463 | . 29 . 159 212 56 . 89 . . 241 413 . 64 159 11 . 20 695 13 39 126 137 Absorbed by Shields 216 | . . . . . . . . . . . . . 63 . 15 . . . . . 138 . Redirected to Shielding 77 | . 16 6 11 . . . . . . . . . . 40 4 . . . . . . . Regen/Repaired (Parts) 5064 | . . . . . 74 . . . . . 567 19 682 208 32 113 77 3103 138 19 32 . Core Remaining (%) 59 | 100 . 88 . 7 89 . . . . 52 . . . . . . 21 . . . . . Volleys Fired 469 | . 43 1 80 56 66 7 33 21 . 9 55 . 35 2 5 3 7 19 1 4 20 2 Largest 2 | . 2 2 2 2 2 1 2 2 . 2 2 . 2 2 2 2 2 2 1 1 2 1 Hottest 200 | . 90 90 120 136 180 30 60 60 . 180 200 . 135 65 165 95 95 70 50 50 80 35 Shots Fired 804 | . 72 2 156 113 127 7 45 24 . 11 99 . 58 4 10 6 12 25 1 4 26 2 Gun 266 | . 72 2 86 55 . . . . . . 11 . 1 . 5 3 7 6 . . 18 . Cannon 512 | . . . 66 58 125 7 45 24 . 11 78 . 56 4 5 3 5 14 . 3 6 2 Launcher 14 | . . . 1 . 2 . . . . . 2 . 1 . . . . 4 1 1 2 . Special 12 | . . . 3 . . . . . . . 8 . . . . . . 1 . . . . Kinetic 137 | . 12 . 59 55 . . . . . . 3 . . . . . 2 6 . . . . Thermal 528 | . 5 . 69 58 125 7 45 24 . 11 86 . 56 4 5 3 5 14 . 3 6 2 Explosive 14 | . . . 1 . 2 . . . . . 2 . 1 . . . . 4 1 1 2 . Electromagnetic 106 | . 55 2 27 . . . . . . . 8 . 1 . 5 3 5 . . . . . Entropic 18 | . . . . . . . . . . . . . . . . . . . . . 18 . Robot Hit Streak 19 | . 7 8 14 19 8 2 17 3 . 6 13 . 8 5 15 18 4 3 2 1 4 . Robot Miss Streak 13 | . 6 . 5 2 4 1 2 1 . . 6 . 4 . . 1 1 9 13 4 4 . Penetration Max 1 | . . . . . . . . . . . . . . . . . . . . . 1 . Secondary Targets 4 | . 2 . 2 . . . . . . . . . . . . . . . . . . . Max Gunslinging Chain 1 | . 1 . 1 . . . . . . . . . . . . . . . . . . . Shots Hit Robots 653 | . 31 1 105 80 66 4 33 4 1 9 87 . 32 14 18 21 15 90 2 9 22 9 Core Hits 360 | . 21 1 49 30 42 4 10 3 . 3 55 . 19 7 3 9 12 50 7 11 22 2 Critical Kills 10 | . . . . . 4 . . . . . . . 1 . . . . 2 1 1 . 1 Critical Parts Destroyed 19 | . . . 1 . 3 . . . . . . . . . . . . 9 . 1 3 2 Critical Strikes 47 | . . . 1 . 7 . . . . . . . 1 2 2 2 . 21 1 4 3 3 Meltdown 5 | . . . . . 4 . . . . . . . 1 . . . . . . . . . Destroy 1 | . . . 1 . . . . . . . . . . . . . . . . . . . Smash 21 | . . . . . 3 . . . . . . . . . . . . 11 1 3 . 3 Sever 1 | . . . . . . . . . . . . . . . . . . . . 1 . . Impale 16 | . . . . . . . . . . . . . . 2 2 2 . 10 . . . . Detonate 3 | . . . . . . . . . . . . . . . . . . . . . 3 . Melee Attacks 479 | . . . 8 . 10 9 19 3 1 12 86 . 39 12 8 17 9 173 20 25 8 20 Impact 149 | . . . 8 . 10 . . . . . . . . . . . . 70 17 20 8 16 Slashing 15 | . . . . . . . . . . . . . . . . . . 3 3 5 . 4 Piercing 314 | . . . . . . 9 19 3 . 12 86 . 39 12 8 17 9 100 . . . . Sneak Attacks 59 | . . . . . 4 1 2 1 1 . 9 . 3 4 8 9 3 12 . 2 . . Combat Hostiles 2 | . . . . . . . 1 . . . . . . 1 . . . . . . . . Follow-up Attacks 14 | . . . . . . . . . . . . . . . . . . 12 . 1 . 1 Damage Inflicted 27615 | . 681 14 2248 1479 2211 146 1049 158 . 363 5493 . 1426 848 813 1210 947 5280 302 740 1748 459 Guns 2836 | . 501 14 837 522 . . . . . . 160 . . . 106 61 41 132 . . 462 . Cannons 8001 | . . . 1110 957 1472 53 863 107 . 106 1642 . 931 93 253 62 160 62 . . 130 . Explosions 5534 | . 180 . 212 . 300 . . . . . 2534 . 117 . . . 341 633 232 208 777 . Melee 11120 | . . . 79 . 439 93 186 51 . 257 1043 . 378 755 454 1087 405 4453 70 532 379 459 Ramming . | . . . . . . . . . . . . . . . . . . . . . . . Kinetic 1401 | . 136 . 555 522 . . . . . . 56 . . . . . . 132 . . . . Thermal 10758 | . 218 . 1120 957 1472 53 863 107 . 106 3704 . 931 93 253 62 160 62 . . 597 . Explosive 2598 | . . . 212 . 300 . . . . . 586 . 117 . . . . 633 232 208 310 . Electromagnetic 1276 | . 327 14 282 . . . . . . . 104 . . . 106 61 382 . . . . . Impact 3974 | . . . 79 . 439 . . . . . . . . . . . . 2095 70 490 379 422 Slashing 79 | . . . . . . . . . . . . . . . . . . . . 42 . 37 Piercing 7067 | . . . . . . 93 186 51 . 257 1043 . 378 755 454 1087 405 2358 . . . . Entropic 462 | . . . . . . . . . . . . . . . . . . . . . 462 . Highest Corruption 16 | . . . . 2 . . 1 . . 16 11 . . . . . 13 11 . . . 6 Average Corruption 5 | . . . . 2 . . 1 . . 11 4 . . . . . 11 6 . . . 6 Corruption Purged 39 | . . . . . . . 1 . . 8 15 . . . . . . 15 . . . . Corruption Blocked . | . . . . . . . . . . . . . . . . . . . . . . . Effects 108 | . . . . 14 . . 1 . . 32 38 . . . . . 2 19 . . . 2 Message Errors 22 | . . . . 2 . . . . . 7 8 . . . . . . 5 . . . . Matter Fused 29 | . . . . 4 . . . . . 9 9 . . . . . 1 5 . . . 1 Heat Flow Errors 12 | . . . . . . . . . . 4 5 . . . . . . 3 . . . . Energy Discharges 12 | . . . . 1 . . . . . 3 4 . . . . . . 4 . . . . Data Loss (minor) 14 | . . . . 3 . . . . . 4 5 . . . . . 1 . . . . 1 Data Loss (major) 8 | . . . . . . . . . . 3 3 . . . . . . 2 . . . . Misfires 6 | . . . . 2 . . 1 . . 1 2 . . . . . . . . . . . Alerts 4 | . . . . 1 . . . . . 1 2 . . . . . . . . . . . Weapon Failures 1 | . . . . 1 . . . . . . . . . . . . . . . . . . Overload Shots 20 | . . . . . 2 . . . . 2 10 . 3 . 3 . . . . . . . Overflow Damage 3522 | . 6 . 27 . 336 . 34 6 . 126 470 . 201 180 39 218 26 1437 . 180 27 209 Projectiles 132 | . . . . . 5 . 28 6 . . 40 . 25 . . . . . . . . 28 Explosions 366 | . 6 . 27 . 24 . . . . . 293 . . . . . 12 4 . . . . Melee 3024 | . . . . . 307 . 6 . . 126 137 . 176 180 39 218 14 1433 . 180 27 181 Knockbacks 17 | . . . . . . . . . . . . . . . . . . 9 . . 3 5 Impact 16 | . . . . . . . . . . . . . . . . . . 9 . . 3 4 Kinetic . | . . . . . . . . . . . . . . . . . . . . . . . Secondary 1 | . . . . . . . . . . . . . . . . . . . . . . 1 Self-Inflicted Damage 686 | . . . 30 . 44 . . . . . 73 . . . . . 95 46 24 . 374 . Shots 20 | . . . 1 . 1 . . . . . 1 . . . . . 1 2 1 . 13 . Rammed . | . . . . . . . . . . . . . . . . . . . . . . . Targets Rammed . | . . . . . . . . . . . . . . . . . . . . . . . Kicked . | . . . . . . . . . . . . . . . . . . . . . . . Crushed . | . . . . . . . . . . . . . . . . . . . . . . . Highest Temperature 358 | . 262 36 76 158 310 . 3 . . 131 222 . 358 20 39 . . 273 . . 73 . Average Temperature 66 | . 84 22 18 31 110 . 2 . . 55 64 . 123 10 15 . . 113 . . 36 . Received Heat Transfer 2830 | . 39 . 411 132 135 . 333 18 . 120 354 . 129 273 18 . 210 546 . 45 4 63 Effects 4 | . . . . . . . . . . . 3 . 1 . . . . . . . . . Interference 3 | . . . . . . . . . . . 3 . . . . . . . . . . . Matter Decay 1 | . . . . . . . . . . . . . 1 . . . . . . . . . Siege Activations . | . . . . . . . . . . . . . . . . . . . . . . . Robots Corrupted 1 | . . . . . . . . . . . . . . . 1 . . . . . . . Combat Hostiles 1 | . . . . . . . . . . . . . . . 1 . . . . . . . Parts Fried 28 | . . . . . 10 . . 2 . . . . . . 2 . 2 8 . . . 4 Impact Corruptions 54 | . . . . . 8 . . . . . . . . . . . . 29 . 7 1 9 Robots Melted 7 | . . . . . 4 . . . . . 1 . 2 . . . . . . . . . Combat Hostiles 6 | . . . . . 3 . . . . . 1 . 2 . . . . . . . . . Parts Melted 27 | . . . 3 . 6 . 2 . . 1 11 . 3 . . . 1 . . . . . Heat Transferred 14210 | . 249 . 1850 1739 2492 74 1147 148 . 124 3651 . 1222 124 340 100 250 100 . . 600 . Parts Sabotaged . | . . . . . . . . . . . . . . . . . . . . . . . Parts Stolen . | . . . . . . . . . . . . . . . . . . . . . . . Parts Stripped . | . . . . . . . . . . . . . . . . . . . . . . . Power Chain Reactions 3 | . 3 . . . . . . . . . . . . . . . . . . . . . Missiles Intercepted . | . . . . . . . . . . . . . . . . . . . . . . . Alert | -11 -10 -10 -9 -9 -8 -7 -7 -7 -7 -6 -6 -6 -6 -6 -6 -6 -6 -5 -5 -5 -5 -4 ------- Run | Scr Mat Min Mat Min Mat Fac Low Low Dat Pro Fac Was Fac Ext Cet Arc Hub Fac Upp Upp War Pro Peak Influence 933 | . 267 34 418 294 449 212 . . . . 854 298 544 384 492 410 460 933 . . . . Initial 298 | . . 34 . 159 11 50 . . . . . 298 208 72 214 188 143 159 . . . . Average 231 | . 118 20 219 124 206 83 . . . . 198 298 279 151 291 378 236 436 . . . . Maximum Alert Level 3 | . 1 . 2 1 2 1 . . . . 3 1 2 1 2 2 2 3 . . . . Low Security (%) 55 | 100 75 100 50 73 55 93 . . . . 79 . 24 73 4 3 40 37 . . . . Level 1 23 | . 24 . 33 26 35 6 . . . . 3 100 47 26 73 39 49 1 . . . . Level 2 15 | . . . 15 . 9 . . . . . 2 . 27 . 22 57 10 43 . . . . Level 3 4 | . . . . . . . . . . . 14 . . . . . . 17 . . . . Level 4 . | . . . . . . . . . . . . . . . . . . . . . . . Level 5 . | . . . . . . . . . . . . . . . . . . . . . . . High Security . | . . . . . . . . . . . . . . . . . . . . . . . Max Security . | . . . . . . . . . . . . . . . . . . . . . . . Squads Dispatched 46 | . 4 . 4 1 2 1 . . . . 10 . 7 2 . . 5 10 . . . . Investigation 13 | . 2 . 1 1 1 1 . . . . 4 . 1 . . . . 2 . . . . Extermination 10 | . . . . . . . . . . . 5 . 2 . . . . 3 . . . . Reinforcement 14 | . 2 . 3 . . . . . . . 1 . 2 2 . . 2 2 . . . . Assault 2 | . . . . . . . . . . . . . 2 . . . . . . . . . Garrison 7 | . . . . . 1 . . . . . . . . . . . 3 3 . . . . Intercept . | . . . . . . . . . . . . . . . . . . . . . . . Searches Triggered . | . . . . . . . . . . . . . . . . . . . . . . . Data Miner Redirects 4 | . . . . . . . . . . . 2 . 1 . . . . 1 . . . . Construction Impeded 2 | . . . . . . . . . . . 1 . . . . . . 1 . . . . Haulers Reinforced . | . . . . . . . . . . . . . . . . . . . . . . . Active Scanning Responses . | . . . . . . . . . . . . . . . . . . . . . . . Cargo Convoy Interrupts . | . . . . . . . . . . . . . . . . . . . . . . . Stealth | -11 -10 -10 -9 -9 -8 -7 -7 -7 -7 -6 -6 -6 -6 -6 -6 -6 -6 -5 -5 -5 -5 -4 --------- Run | Scr Mat Min Mat Min Mat Fac Low Low Dat Pro Fac Was Fac Ext Cet Arc Hub Fac Upp Upp War Pro Distress Signals 30 | . 1 . 4 . 6 1 . . . . 5 . 3 4 1 . 1 2 . . 2 . Communications Jammed . | . . . . . . . . . . . . . . . . . . . . . . . Distress Signals . | . . . . . . . . . . . . . . . . . . . . . . . Times Spotted 415 | . 26 1 52 22 48 13 7 7 . 10 41 . 18 21 5 10 17 60 5 13 26 13 Peak Tracking Total 13 | . 5 1 6 3 8 5 5 2 . 4 5 . 5 6 5 2 11 13 4 4 9 7 Tactical Retreats 36 | . 1 . 1 2 3 2 1 4 . 1 1 . 5 4 . . . 7 . 2 1 1 Traps | -11 -10 -10 -9 -9 -8 -7 -7 -7 -7 -6 -6 -6 -6 -6 -6 -6 -6 -5 -5 -5 -5 -4 ------- Run | Scr Mat Min Mat Min Mat Fac Low Low Dat Pro Fac Was Fac Ext Cet Arc Hub Fac Upp Upp War Pro Traps Triggered 11 | . . 1 . . 1 . . . . . 2 . 5 . . . . 2 . . . . Indirectly . | . . . . . . . . . . . . . . . . . . . . . . . Trap Hack Attempts . | . . . . . . . . . . . . . . . . . . . . . . . Triggered . | . . . . . . . . . . . . . . . . . . . . . . . Disarmed 6 | . . . . . . . . . . . . . . 6 . . . . . . . . Reprogrammed 48 | . . . 8 . . 6 . . . . 11 . 6 . . . . 17 . . . . Reused 25 | . . . . 1 . . 1 . . 2 2 . 2 . . . 2 2 2 8 . 3 Traps Extracted 11 | . . . 2 . . . . . . . 5 . . . . . . . 3 1 . . Installed 21 | . . . . 1 . . 1 . . 2 1 . . . . . 2 . 2 9 . 3 Triggered 42 | . . . . 1 . . 1 1 . 2 2 . 2 . . . 2 2 2 11 13 3 Most Traps Carried 6 | . . . 2 2 1 1 1 3 3 3 5 5 5 5 5 5 5 3 3 6 3 3 Time Bombs Activated 1 | . . . . . . . . . . . . . . . . . . . . . . 1 Exploded 1 | . . . . . . . . . . . . . . . . . . . . . . 1 Machines | -11 -10 -10 -9 -9 -8 -7 -7 -7 -7 -6 -6 -6 -6 -6 -6 -6 -6 -5 -5 -5 -5 -4 ---------- Run | Scr Mat Min Mat Min Mat Fac Low Low Dat Pro Fac Was Fac Ext Cet Arc Hub Fac Upp Upp War Pro Machines Disabled 40 | . 1 . 1 1 3 1 . . . . 20 . 1 . 1 1 9 . . . . 1 Max in Single Turn 12 | . 1 . 1 1 1 1 . . . . 12 . 1 . . 1 8 . . . . 1 Garrison Access 12 | . . . . . 1 1 . . . . 2 . 4 . . . 1 3 . . . . Network Hub 1 | . . . . . . . . . . . . . . . . . 1 . . . . . Energy Cycler 2 | . . . . . . . . . . . . . . 2 . . . . . . . . Machines Sabotaged . | . . . . . . . . . . . . . . . . . . . . . . . Garrisons Compromised . | . . . . . . . . . . . . . . . . . . . . . . . Overloaded Fab Kills . | . . . . . . . . . . . . . . . . . . . . . . . Hacking | -11 -10 -10 -9 -9 -8 -7 -7 -7 -7 -6 -6 -6 -6 -6 -6 -6 -6 -5 -5 -5 -5 -4 --------- Run | Scr Mat Min Mat Min Mat Fac Low Low Dat Pro Fac Was Fac Ext Cet Arc Hub Fac Upp Upp War Pro Machines Accessed 141 | . 8 1 10 1 12 16 1 1 4 . 24 . 26 5 1 . 6 20 1 . 4 . Terminals 74 | . 6 . 6 . 9 8 . . . . 10 . 14 5 1 . 5 10 . . . . Fabricators 10 | . . . . . . 3 . . . . 5 . . . . . . 2 . . . . Repair Stations 10 | . . . 1 . 1 1 . . . . 2 . 1 . . . . 4 . . . . Recycling Units 11 | . 2 . 2 . . 1 . . . . 3 . 3 . . . . . . . . . Scanalyzers 11 | . . . 1 . 1 2 . . . . 2 . 4 . . . . 1 . . . . Garrison Access 12 | . . . . . 1 1 . . . . 2 . 4 . . . 1 3 . . . . Total Hacks 567 | . 19 1 33 1 37 55 1 1 27 . 89 . 101 20 2 . 28 136 1 . 15 . Successful 436 | . 11 1 19 1 21 46 1 1 27 . 72 . 72 17 1 . 19 111 1 . 15 . Failed 130 | . 8 . 14 . 16 9 . . . . 17 . 29 3 1 . 9 24 . . . . Catastrophic 6 | . 1 . . . . 1 . . . . . . . 1 1 . 2 . . . . . Database Lockouts 1 | . . . . . . . . . . . . . . . . . . 1 . . . . Manual 186 | . 9 . 17 . 18 20 . . . . 31 . 24 8 1 . 13 43 . . 1 1 Terminals 292 | . 17 . 25 . 30 31 . . . . 30 . 43 20 2 . 26 68 . . . . Fabricators 32 | . . . . . . 9 . . . . 14 . . . . . . 9 . . . . Repair Stations 85 | . . . 3 . 2 1 . . . . 12 . 18 . . . . 49 . . . . Recycling Units 27 | . 2 . 2 . . 1 . . . . 13 . 9 . . . . . . . . . Scanalyzers 66 | . . . 3 . 4 12 . . . . 18 . 23 . . . . 6 . . . . Garrison Access 18 | . . . . . 1 1 . . . . 2 . 8 . . . 2 4 . . . . Terminal Hacks 179 | . 5 1 10 1 8 16 1 1 27 . 13 . 18 11 1 . 13 37 1 . 15 . Record 19 | . . . . . . . . . 11 . . . . . . . . . . . 8 . Part Schematic 16 | . . . . . . 3 . . 9 . . . . . . . . 4 . . . . Robot Schematic 5 | . . . . . . 1 . . 4 . . . . . . . . . . . . . Robot Analysis 3 | . . . . . . 2 . . . . . . . 1 . . . . . . . . Prototype ID Bank 25 | . 2 . 3 . 1 1 . . 3 . . . 2 1 . . 1 5 . . 6 . Open Door 7 | . . 1 . 1 . . 1 1 . . . . . . 1 . . . 1 . 1 . Level Access Points 2 | . . . . . . . . . . . . . . . . . 1 1 . . . . Branch Access Points 6 | . 1 . 1 . 1 1 . . . . . . 1 . . . . 1 . . . . Machine Index 1 | . . . . . . . . . . . . . . . . . . 1 . . . . Terminal Index 9 | . 1 . 1 . 1 1 . . . . 1 . 1 1 . . 1 1 . . . . Fabricator Index 1 | . . . . . . 1 . . . . . . . . . . . . . . . . Repair Station Index 2 | . . . . . . . . . . . 1 . 1 . . . . . . . . . Garrison Index 2 | . . . . . . . . . . . 1 . 1 . . . . . . . . . Alert Level 6 | . . . . . . . . . . . 1 . . 1 . . 2 2 . . . . Unreport Threat 16 | . . . . . 2 2 . . . . 2 . 2 1 . . 2 5 . . . . Locate Traps 20 | . 1 . 1 . 2 . . . . . 3 . 5 4 . . 1 3 . . . . Disarm Traps 1 | . . . . . . . . . . . . . . 1 . . . . . . . . Reprogram Traps 10 | . . . 2 . . 1 . . . . 2 . 1 . . . . 4 . . . . Security Status 1 | . . . . . . . . . . . . . . . . . . 1 . . . . Recall Investigation 3 | . . . . . . 1 . . . . 1 . . . . . . 1 . . . . Recall Extermination 2 | . . . . . . . . . . . . . 1 . . . . 1 . . . . Hauler Manifests 3 | . . . 1 . 1 . . . . . . . . . . . 1 . . . . . Registered Components 1 | . . . . . . 1 . . . . . . . . . . . . . . . . Zone Layout 18 | . . . 1 . . 1 . . . . 1 . 3 1 . . 4 7 . . . . Fabricator Hacks 18 | . . . . . . 4 . . . . 9 . . . . . . 5 . . . . Network Status 3 | . . . . . . 1 . . . . 1 . . . . . . 1 . . . . Load Schematic 7 | . . . . . . 1 . . . . 4 . . . . . . 2 . . . . Build 8 | . . . . . . 2 . . . . 4 . . . . . . 2 . . . . Repair Station Hacks 78 | . . . 1 . 2 1 . . . . 12 . 18 . . . . 44 . . . . Scan Component 39 | . . . 1 . 1 . . . . . 6 . 9 . . . . 22 . . . . Repair 38 | . . . . . 1 . . . . . 6 . 9 . . . . 22 . . . . Refit 1 | . . . . . . 1 . . . . . . . . . . . . . . . . Recycling Unit Hacks 9 | . . . 1 . . 1 . . . . 4 . 3 . . . . . . . . . Report Inventory 7 | . . . 1 . . 1 . . . . 2 . 3 . . . . . . . . . Retrieve Components 2 | . . . . . . . . . . . 2 . . . . . . . . . . . Scanalyzer 59 | . . . 1 . 4 12 . . . . 16 . 20 . . . . 6 . . . . Insert Component 26 | . . . 1 . 2 5 . . . . 6 . 9 . . . . 3 . . . . Analyze 33 | . . . . . 2 7 . . . . 10 . 11 . . . . 3 . . . . Garrison Access Hacks 11 | . . . . . 1 1 . . . . 2 . 3 . . . 1 3 . . . . Seal Access 11 | . . . . . 1 1 . . . . 2 . 3 . . . 1 3 . . . . Unauthorized Hacks 82 | . 6 . 6 . 6 11 . . . . 16 . 10 6 . . 5 16 . . . . Terminals 58 | . 4 . 5 . 6 6 . . . . 8 . 6 6 . . 5 12 . . . . Track 8 | . . . . . . . . . . . . . 1 3 . . 1 3 . . . . Assimilate 17 | . 2 . 1 . 4 2 . . . . 3 . 2 . . . . 3 . . . . Botnet 21 | . 1 . 3 . 1 3 . . . . 2 . 2 2 . . 3 4 . . . . Detonate 1 | . . . . . . . . . . . 1 . . . . . . . . . . . Disrupt 2 | . . . . . . . . . . . 1 . . . . . . 1 . . . . Operators 9 | . 1 . 1 . 1 1 . . . . 1 . 1 1 . . 1 1 . . . . Fabricators 12 | . . . . . . 5 . . . . 3 . . . . . . 4 . . . . Report 2 | . . . . . . 1 . . . . . . . . . . . 1 . . . . Prioritize 6 | . . . . . . 1 . . . . 3 . . . . . . 2 . . . . Liberate 2 | . . . . . . 2 . . . . . . . . . . . . . . . . Haulers 2 | . . . . . . 1 . . . . . . . . . . . 1 . . . . Repair Stations . | . . . . . . . . . . . . . . . . . . . . . . . Recycling Units 11 | . 2 . 1 . . . . . . . 5 . 3 . . . . . . . . . Reject 4 | . . . . . . . . . . . 3 . 1 . . . . . . . . . Recyclers 1 | . . . . . . . . . . . . . 1 . . . . . . . . . Mask 3 | . . . . . . . . . . . 2 . 1 . . . . . . . . . Tunnel 3 | . 2 . 1 . . . . . . . . . . . . . . . . . . . Scanalyzers . | . . . . . . . . . . . . . . . . . . . . . . . Garrison Access 1 | . . . . . . . . . . . . . 1 . . . . . . . . . Jam 1 | . . . . . . . . . . . . . 1 . . . . . . . . . Data Cores Recovered . | . . . . . . . . . . . . . . . . . . . . . . . Used . | . . . . . . . . . . . . . . . . . . . . . . . Hacking Detections 97 | . 6 . 8 . 10 13 . . . . 20 . 20 5 1 . 4 10 . . . . Full Trace Events 7 | . . . . . . 1 . . . . 4 . . . . . . 2 . . . . Feedback Events . | . . . . . . . . . . . . . . . . . . . . . . . Feedback Blocked . | . . . . . . . . . . . . . . . . . . . . . . . Robot Schematics Acquired 5 | . . . . . . 1 . . 4 . . . . . . . . . . . . . Robots Built 5 | . . . . . . 5 . . . . . . . . . . . . . . . . Authchips . | . . . . . . . . . . . . . . . . . . . . . . . Time 163 | . . . . . . 125 . . . . 38 . . . . . . . . . . . Total Robot Build Rating 18 | . . . . . . 18 . . . . . . . . . . . . . . . . Part Schematics Acquired 40 | . . . . . 2 8 . . 9 . 6 . 8 . . . . 7 . . . . Parts Built 7 | . . . . . . . . . . . 5 . . . . . . 2 . . . . Authchips . | . . . . . . . . . . . . . . . . . . . . . . . Time 171 | . . . . . . . . . . . 92 . . . . . . 79 . . . . Total Part Build Rating 37 | . . . . . . . . . . . 25 . . . . . . 12 . . . . Parts Repaired 38 | . . . . . 1 . . . . . 6 . 9 . . . . 22 . . . . Time 1850 | . . . . . 19 . . . . . 356 . 510 . . . . 965 . . . . Parts Recycled . | . . . . . . . . . . . . . . . . . . . . . . . Recycled Matter . | . . . . . . . . . . . . . . . . . . . . . . . Retrieved Matter . | . . . . . . . . . . . . . . . . . . . . . . . Retrieved Components 5 | . . . . . . . . . . . 5 . . . . . . . . . . . Parts Scanalyzed 26 | . . . 1 . 2 5 . . . . 6 . 9 . . . . 3 . . . . Part Schematics Acquired 24 | . . . . . 2 5 . . . . 6 . 8 . . . . 3 . . . . Parts Damaged 1 | . . . . . . . . . . . . . 1 . . . . . . . . . Bothacking | -11 -10 -10 -9 -9 -8 -7 -7 -7 -7 -6 -6 -6 -6 -6 -6 -6 -6 -5 -5 -5 -5 -4 ------------ Run | Scr Mat Min Mat Min Mat Fac Low Low Dat Pro Fac Was Fac Ext Cet Arc Hub Fac Upp Upp War Pro Used RIF Installer . | . . . . . . . . . . . . . . . . . . . . . . . Robots Hacked 1 | . . . . . . . . . 1 . . . . . . . . . . . . . Non-combat . | . . . . . . . . . . . . . . . . . . . . . . . Combat 1 | . . . . . . . . . 1 . . . . . . . . . . . . . Robot Hacks Applied 1 | . . . . . . . . . 1 . . . . . . . . . . . . . parse_system 1 | . . . . . . . . . 1 . . . . . . . . . . . . . Relay Couplers Released 5 | . . . . . . . . . . . 3 . . . . . 2 . . . . . Machine Destruction 5 | . . . . . . . . . . . 3 . . . . . 2 . . . . . Fabnet Peak Effective % . | . . . . . . . . . . . . . . . . . . . . . . . Robots Rewired 16 | . . . . . . . . . . . . . . 11 . . . . . . 4 1 Allies Hacked 1 | . . . . . . . . . . . 1 . . . . . . . . . . . Hacks Repelled . | . . . . . . . . . . . . . . . . . . . . . . . Allies | -11 -10 -10 -9 -9 -8 -7 -7 -7 -7 -6 -6 -6 -6 -6 -6 -6 -6 -5 -5 -5 -5 -4 -------- Run | Scr Mat Min Mat Min Mat Fac Low Low Dat Pro Fac Was Fac Ext Cet Arc Hub Fac Upp Upp War Pro Total Allies 46 | . . 1 1 . 2 7 . . . 1 1 . 1 20 4 . . 2 . 1 4 1 Largest Group 12 | . . 1 1 1 3 8 7 2 2 3 2 . 1 12 7 5 4 1 1 2 5 1 Highest-Rated Group 588 | . . 31 10 10 30 140 112 20 20 116 26 . 26 353 588 333 308 26 26 166 230 41 Highest-Rated Ally 159 | . . 31 10 10 10 30 30 10 10 96 26 . 26 159 159 96 96 26 26 140 65 41 Total Orders 62 | . . . . 2 8 . 4 4 . 2 4 . . 2 1 . . 4 4 15 7 5 STAY 27 | . . . . 1 4 . 2 2 . 1 2 . . 1 1 . . 2 2 5 4 . ROAM 1 | . . . . . . . . . . . . . . . . . . . . 1 . . FOLLOW 22 | . . . . 1 4 . 2 2 . 1 2 . . 1 . . . 2 2 3 2 . EXPLORE 3 | . . . . . . . . . . . . . . . . . . . . 3 . . RETURN 9 | . . . . . . . . . . . . . . . . . . . . 3 1 5 Ally Attacks 213 | . . . . . . 14 5 . . 10 . . . 76 35 16 43 . . 3 11 . Total Damage 6577 | . . . . . . 311 72 . . 457 . . . 1488 1182 647 1760 . . 175 485 . Kills 48 | . . . . . . 5 1 . . 2 . . . 15 9 4 11 . . 1 . . Allies Corrupted . | . . . . . . . . . . . . . . . . . . . . . . . Allies Melted . | . . . . . . . . . . . . . . . . . . . . . . . Intel | -11 -10 -10 -9 -9 -8 -7 -7 -7 -7 -6 -6 -6 -6 -6 -6 -6 -6 -5 -5 -5 -5 -4 ------- Run | Scr Mat Min Mat Min Mat Fac Low Low Dat Pro Fac Was Fac Ext Cet Arc Hub Fac Upp Upp War Pro Robot Analysis Total 3 | . . . . . . 2 . . . . . . . 1 . . . . . . . . Derelict Logs Recovered 15 | . . 3 . 2 . . 1 2 . 1 . . . . . . . . 1 3 . 2 Drone Launches 21 | . . . . . . . . . . . . . . . . . . . . 11 . 10 Drone Recoveries 20 | . . . . . . . . . . . . . . . . . . . . 8 2 10 Exploration | -11 -10 -10 -9 -9 -8 -7 -7 -7 -7 -6 -6 -6 -6 -6 -6 -6 -6 -5 -5 -5 -5 -4 ------------- Run | Scr Mat Min Mat Min Mat Fac Low Low Dat Pro Fac Was Fac Ext Cet Arc Hub Fac Upp Upp War Pro Turns Passed 29708 | 57 1340 885 2170 1246 2554 571 845 1143 46 2521 2992 138 2355 720 273 388 570 3004 1619 2212 850 1209 Spaces Moved 25507 | 52 864 717 1204 645 1456 998 1357 1601 88 1309 1942 206 2394 659 149 196 463 2575 1828 2381 1128 1295 Core 3 | 2 . . . . . . . . . 1 . . . . . . . . . . . . Treads 875 | . 189 . 208 281 . . . . . . 197 . . . . . . . . . . . Legs 1791 | . . . . . . . . . . 1306 477 . . . . . . . . . . 8 Wheels 4258 | 50 675 717 996 364 1456 . . . . . . . . . . . . . . . . . Hover 18580 | . . . . . . 998 1357 1601 88 2 1268 206 2394 659 149 196 463 2575 1828 2381 1128 1287 Flight . | . . . . . . . . . . . . . . . . . . . . . . . Fastest Speed 45 | 50 95 120 120 135 135 45 45 45 45 108 56 60 60 63 60 60 60 52 58 58 48 61 Average Speed 82 | 86 135 120 145 157 146 45 48 53 45 163 101 60 62 63 60 60 62 59 58 58 52 62 Slowest Speed 260 | 95 240 120 240 240 210 165 105 108 45 200 260 138 63 65 63 60 216 146 58 58 61 260 Overloaded Moves . | . . . . . . . . . . . . . . . . . . . . . . . Propulsion Burnouts . | . . . . . . . . . . . . . . . . . . . . . . . Robots Hopped . | . . . . . . . . . . . . . . . . . . . . . . . Cave-ins Triggered 1 | . . . . . . . . . . . . . 1 . . . . . . . . . Exploration Rate (%) 73 | 3 93 92 95 98 73 32 95 94 75 93 43 86 55 72 58 75 28 48 99 98 92 82 Regions Visited 22 Branch Regions 14 Pre-discovered Areas 7 | . 2 2 1 . . . . . 1 . . . . . . . . . 1 . . . Known Exits Taken 17 | . 1 . 1 1 . 1 1 1 1 1 . . 1 1 1 1 1 1 1 1 1 . Unknown Exits Taken 3 | 1 . 1 . . 1 . . . . . . . . . . . . . . . . . Scrap Searched 22 | . . 1 . 1 . . 4 6 . 2 . . . . . . . . 3 3 . 2 Spaces Dug 219 | . . . 6 . 21 3 15 11 . 5 32 . 47 . . . 1 48 6 14 . 10 Terrain Destroyed 778 | . 10 . 9 . 35 3 15 13 . 6 182 . 89 1 . . 158 110 32 40 65 10 Melee 150 | . . . 2 . 4 1 11 2 . 4 30 . 30 . . . 1 40 6 11 . 8 Projectile 114 | . . . 3 . 16 2 4 11 . 2 10 . 21 1 . . . 16 . 3 23 2 AOE 514 | . 10 . 4 . 15 . . . . . 142 . 38 . . . 157 54 26 26 42 . Terrain Rammed . | . . . . . . . . . . . . . . . . . . . . . . . Walls Destroyed . | . . . . . . . . . . . . . . . . . . . . . . . Machines Disabled . | . . . . . . . . . . . . . . . . . . . . . . . Actions | -11 -10 -10 -9 -9 -8 -7 -7 -7 -7 -6 -6 -6 -6 -6 -6 -6 -6 -5 -5 -5 -5 -4 --------- Run | Scr Mat Min Mat Min Mat Fac Low Low Dat Pro Fac Was Fac Ext Cet Arc Hub Fac Upp Upp War Pro Total 32417 | 61 965 741 1441 764 1729 1104 1468 1851 93 1660 2706 220 3092 929 303 423 706 3667 2342 3160 1339 1653 Wait 4847 | . 25 11 76 42 109 58 35 203 3 298 442 . 480 139 126 195 204 783 479 697 126 316 Move 25485 | 51 863 716 1203 644 1455 997 1356 1600 87 1308 1942 205 2392 658 148 195 462 2574 1827 2380 1127 1295 Hop . | . . . . . . . . . . . . . . . . . . . . . . . Pick Up 190 | 4 16 5 14 5 31 5 2 1 . 9 23 1 14 3 5 4 . 30 . 10 6 2 Fast Attach 124 | 6 3 1 3 3 8 1 3 2 . 6 30 6 10 1 . . 4 25 . 2 10 . Attach 84 | . 2 . 7 5 6 6 3 1 . 4 10 . 2 2 2 1 . 21 . 2 5 5 Detach 45 | . . . . . 1 2 3 1 . 4 8 1 3 1 . 1 1 12 . 2 5 . Swap 332 | . 5 2 35 4 23 3 10 17 1 6 63 1 43 6 4 4 14 40 15 21 6 9 Drop 189 | . 8 5 15 4 20 16 3 2 1 2 33 6 17 1 5 3 3 15 1 13 15 1 Fire 469 | . 43 1 80 56 66 7 33 21 . 9 55 . 35 2 5 3 7 19 1 4 20 2 Melee 443 | . . . 8 . 10 9 19 3 1 12 86 . 39 12 8 17 9 148 17 20 8 17 Ram . | . . . . . . . . . . . . . . . . . . . . . . . Kick . | . . . . . . . . . . . . . . . . . . . . . . . Crush . | . . . . . . . . . . . . . . . . . . . . . . . Escape Stasis 70 | . . . . . . . . . . . 13 . 57 . . . . . . . . . Rewire 117 | . . . . . . . . . . . . . . 104 . . . . . . 11 2 Trap 22 | . . . . 1 . . 1 . . 2 1 . . . . . 2 . 2 9 . 4 Miscellaneous . | . . . . . . . . . . . . . . . . . . . . . . . Route ------- -11/Scrapyard -10/Materials (discovered 4 exits: *Mat x3 / *Min) -10/Mines (discovered 3 exits: *Mat x2 / [*Exi]) -9/Materials (discovered 4 exits: *Mat x3 / *Min) -9/Mines (discovered 2 exits: *Mat x2) -8/Materials (discovered 2 exits: *Fac x2) -7/Factory (discovered 4 exits: *Sto x2 / *Low x2) -7/Lower Caves -7/Lower Caves (discovered 2 exits: *Fac / *Dat) -7/Data Miner -6/Proximity Caves -6/Factory (discovered 5 exits: *Fac / Low x2 / *Ext x2) -6/Waste -6/Factory (discovered 5 exits: *Fac / *Low x2 / *Ext x2) -6/Extension (discovered 3 exits: *Fac x2 / *Cet) -6/Cetus -6/Archives (discovered 3 exits: *Fac / *Hub x2) -6/Hub_04(d) (discovered 4 exits: *Fac x4) -5/Factory (discovered 6 exits: Fac x4 / *Upp x2) -5/Upper Caves -5/Upper Caves (discovered 3 exits: *Fac x2 / *War) -5/Warlord -4/Proximity Caves History --------- Turn | Location | Event 12 | -11/Scrapyard | Discovered new exit (range 15) 58 | -11/Scrapyard | Entered Materials 308 | -10/Materials | Build established: Mutant 336 | -10/Materials | Discovered new exit (range 16) 476 | -10/Materials | Discovered new exit (range 13) 584 | -10/Materials | Identified exit to Mines 653 | -10/Materials | Discovered new exit (range 8) 1398 | -10/Materials | Entered Mines 1407 | -10/Mines | Met a Derelict who couldn't figure out how to use a Trap Extractor 1471 | -10/Mines | Deemed a non-threat by the Exiles lab entrance 1471 | -10/Mines | Discovered new exit (range 5) 1568 | -10/Mines | Met a Derelict bent on vengeance 1643 | -10/Mines | Received a Mining Laser from a helpful Derelict 1720 | -10/Mines | Discovered new exit (range 16) 1852 | -10/Mines | Received a Rocket Launcher from a helpful Derelict 2010 | -10/Mines | Learned location of 1 exit from Materials 2063 | -10/Mines | Discovered new exit (range 4) 2283 | -10/Mines | Entered Materials 2283 | -9/Materials | Evolved 2 slots: Utility x2 2284 | -9/Materials | Identified exit to Materials 2769 | -9/Materials | Discovered exit to Materials (range 9) 3077 | -9/Materials | Identified exit to Mines 3802 | -9/Materials | Discovered exit to Materials (range 9) 4453 | -9/Materials | Entered Mines 4453 | -9/Mines | Accompanied by 1 ally 4475 | -9/Mines | Discovered exit to Materials (range 5) 4489 | -9/Mines | Discovered exit to Materials (range 8) 4631 | -9/Mines | A weapon hastily lodged in a ceiling crevice suddenly fell to the ground 4798 | -9/Mines | Learned Materials emergency access door positions 4905 | -9/Mines | Met a Derelict shopkeep closing up shop 5081 | -9/Mines | Assembled infested the area 5092 | -9/Mines | Learned Materials stockpile data 5145 | -9/Mines | Core integrity fell below 50% 5648 | -9/Mines | Core integrity fell below 20% 5699 | -9/Mines | Entered Materials 5699 | -8/Materials | Accompanied by 1 ally 5699 | -8/Materials | Evolved 2 slots: Propulsion x1, Utility x1 6053 | -8/Materials | Destroyed 7 combat bots 6122 | -8/Materials | Discovered new exit (range 12) 6181 | -8/Materials | Repaired Reflective Plating 6455 | -8/Materials | Garrison activated, responded to threat 6567 | -8/Materials | Build established: Scavenger-Mutant 7262 | -8/Materials | Discovered new exit (range 16) 7499 | -8/Materials | Build established: Mutant 8253 | -8/Materials | Entered Factory 8253 | -7/Factory | Accompanied by 3 allies 8253 | -7/Factory | Evolved 2 slots: Propulsion x1, Utility x1 8278 | -7/Factory | Identified exit to Storage 8278 | -7/Factory | Identified exit to Lower Caves 8565 | -7/Factory | Fabricated L-41 Fighter (x3) 8749 | -7/Factory | Fabricated H-55 Commando (x2) 8763 | -7/Factory | Build established: Commander-Scout 8824 | -7/Factory | Entered Lower Caves 8824 | -7/Lower Caves | Accompanied by 7 allies 9092 | -7/Lower Caves | Spotted B-75 Beast 9285 | -7/Lower Caves | Learned Factory security intel 9287 | -7/Lower Caves | Encountered a Warlord checkpoint 9330 | -7/Lower Caves | Build established: Scout 9577 | -7/Lower Caves | Discovered new exit (range 11) 9581 | -7/Lower Caves | Identified exit to Lower Caves 9669 | -7/Lower Caves | Entered another Lower Caves area 9669 | -7/Lower Caves | Accompanied by 2 allies 9693 | -7/Lower Caves | Discovered new exit (range 8) 9696 | -7/Lower Caves | Identified exit to Factory 9770 | -7/Lower Caves | Learned 8 Factory zone layouts 9819 | -7/Lower Caves | Learned location of 1 exit from Factory 10026 | -7/Lower Caves | Discovered new exit (range 7) 10031 | -7/Lower Caves | Identified exit to Data Miner 10178 | -7/Lower Caves | Spotted B-75 Beast 10812 | -7/Lower Caves | Entered Data Miner 10812 | -7/Data Miner | Accompanied by 2 allies 10812 | -7/Data Miner | Discovered new exit (range 6) 10815 | -7/Data Miner | Identified exit to Proximity Caves 10821 | -7/Data Miner | Met Data Miner 10836 | -7/Data Miner | Learned location of Section 7 (-2) 10836 | -7/Data Miner | Acquired the access code to Warlord's prototype stash 10843 | -7/Data Miner | Received God Mode back door access code from Data Miner 10858 | -7/Data Miner | Entered Proximity Caves 10858 | -6/Proximity Caves | Accompanied by 2 allies 10913 | -6/Proximity Caves | Lost 5 parts (1p4n) 11224 | -6/Proximity Caves | Build established: Assassin 12274 | -6/Proximity Caves | Escorted by Enhanced Grunt 12516 | -6/Proximity Caves | System corruption reached 10% 13158 | -6/Proximity Caves | Build established: Scavenger-Assassin 13347 | -6/Proximity Caves | Discovered exit to Factory (range 9) 13379 | -6/Proximity Caves | Entered Factory 13379 | -6/Factory | Accompanied by 2 allies 13379 | -6/Factory | Evolved 2 slots: Propulsion x1, Utility x1 13380 | -6/Factory | Identified exit to Extension 13381 | -6/Factory | Identified exit to Lower Caves 13582 | -6/Factory | Discovered exit to Extension (range 16) 13900 | -6/Factory | System corruption reached 10% 14751 | -6/Factory | Discovered new exit (range 10) 14758 | -6/Factory | Lost 3 parts (2n1u) 14865 | -6/Factory | Identified exit to Factory 15138 | -6/Factory | Fabricated Cmb. Airjet (x2) 15299 | -6/Factory | Build established: Hacker-Mutant 15305 | -6/Factory | Repaired Adv. System Restoration Module 15349 | -6/Factory | Repaired Lyr. Light Armor Plating? 15475 | -6/Factory | Fabricated Cmb. Airjet (x2) 15567 | -6/Factory | Incoming investigation squad redirected 15585 | -6/Factory | Fabricated Lgt. Regenerative Plating (x1) 15746 | -6/Factory | Discovered exit to Lower Caves (range 12) 15882 | -6/Factory | Incoming investigation squad redirected 16049 | -6/Factory | Repaired Cld. Particle Cannon? 16111 | -6/Factory | Repaired Adv. System Restoration Module 16164 | -6/Factory | Repaired Adv. Sensor Array 16245 | -6/Factory | Repaired Imp. Lightning Gun 16371 | -6/Factory | Manually triggered Chute Trap 16371 | -6/Factory | Sucked down chute 16371 | -6/Factory | Entered Waste 16371 | -6/Waste | The area was eerily silent 16445 | -6/Waste | Discovered new exit (range 16) 16509 | -6/Waste | Identified exit to Factory 16509 | -6/Waste | Entered Factory 16579 | -6/Factory | Found Prototype Launcher 16714 | -6/Factory | Discovered exit to Extension (range 5) 17153 | -6/Factory | Identified Scatter Rocket Array 17209 | -6/Factory | First assault squad dispatched 17230 | -6/Factory | Incoming assault squad redirected 17809 | -6/Factory | Discovered exit to Factory (range 15) 17841 | -6/Factory | Core integrity fell below 50% 18156 | -6/Factory | Crushed by falling debris 18318 | -6/Factory | Repaired Force Lance? 18382 | -6/Factory | Repaired Cmb. Airjet 18427 | -6/Factory | Repaired Imp. Cooling System 18508 | -6/Factory | Repaired Cld. Plasma Cannon 18560 | -6/Factory | Repaired Cmb. Airjet 18611 | -6/Factory | Repaired Cmb. Airjet 18663 | -6/Factory | Repaired Cmb. Airjet 18708 | -6/Factory | Repaired Med. Reflective Plating 18789 | -6/Factory | Repaired Ion Burst Cannon 18864 | -6/Factory | Entered Extension 18953 | -6/Extension | Rescued a captive Derelict 18953 | -6/Extension | Rescued a captive Derelict 19067 | -6/Extension | Rescued a captive Derelict 19214 | -6/Extension | Rescued a captive Derelict 19215 | -6/Extension | Rescued a captive Derelict 19241 | -6/Extension | Energy Cycler disabled 19241 | -6/Extension | Rescued a captive Derelict 19242 | -6/Extension | Rescued a captive Derelict 19242 | -6/Extension | Rescued a captive Derelict 19244 | -6/Extension | Rescued a captive Derelict 19246 | -6/Extension | Rescued a captive Derelict 19266 | -6/Extension | Spotted B-75 Beast 19272 | -6/Extension | Spotted B-75 Beast 19277 | -6/Extension | Discovered exit to Factory (range 16) 19327 | -6/Extension | Rescued A7 19570 | -6/Extension | Discovered exit to Factory (range 10) 19571 | -6/Extension | Discovered new exit (range 6) 19579 | -6/Extension | Identified exit to Cetus 19584 | -6/Extension | Entered Cetus 19584 | -6/Cetus | Accompanied by 7 allies (A7) 19589 | -6/Cetus | Acquired a Cetus Manufacturing Module code from A7 19641 | -6/Cetus | Spotted Cetus Guard 19641 | -6/Cetus | Spotted Cetus Guard 19642 | -6/Cetus | Spotted Cetus Guard 19645 | -6/Cetus | Build established: Machinist-Mutant 19645 | -6/Cetus | Spotted Cetus Guard 19654 | -6/Cetus | Allies destroyed Cetus Guard 19661 | -6/Cetus | Destroyed Cetus Guard 19664 | -6/Cetus | Allies destroyed Cetus Guard 19668 | -6/Cetus | Allies destroyed Cetus Guard 19696 | -6/Cetus | Started Cetus Manufacturing Module 19702 | -6/Cetus | Escorted A7 to Cetus Mainframe 19721 | -6/Cetus | Manufactured an Enhanced Grunt 19723 | -6/Cetus | Discovered new exit (range 16) 19732 | -6/Cetus | Identified exit to Archives 19746 | -6/Cetus | Manufactured an Enhanced Grunt 19771 | -6/Cetus | Manufactured an Enhanced Grunt 19796 | -6/Cetus | Manufactured an Enhanced Grunt 19810 | -6/Cetus | Cetus Manufacturing Module disabled 19838 | -6/Cetus | Destroyed A7 19839 | -6/Cetus | Extracted ID and sensor layout for unrecognized location from A7's data core 19857 | -6/Cetus | Entered Archives 19857 | -6/Archives | Accompanied by 5 allies 19937 | -6/Archives | Discovered new exit (range 15) 19967 | -6/Archives | Discovered new exit (range 16) 20009 | -6/Archives | Discovered exit to Factory (range 14) 20072 | -6/Archives | Identified exit to Hub_04(d) 20245 | -6/Archives | Entered Hub_04(d) 20245 | -6/Hub_04(d) | Accompanied by 4 allies 20272 | -6/Hub_04(d) | Build established: Scavenger-Mutant 20280 | -6/Hub_04(d) | Garrison activated, responded to threat 20795 | -6/Hub_04(d) | Network Hub disabled 20797 | -6/Hub_04(d) | Spotted Lightning 20798 | -6/Hub_04(d) | Spotted Lightning 20806 | -6/Hub_04(d) | Spotted Lightning 20815 | -6/Hub_04(d) | Entered Factory 20815 | -5/Factory | Evolved 2 slots: Utility x2 20845 | -5/Factory | Lost 4 parts (3n1w) 20867 | -5/Factory | Identified exit to Upper Caves 20912 | -5/Factory | Central database locked down 21018 | -5/Factory | Repaired Cmb. Airjet 21033 | -5/Factory | Repaired Imp. Cooling System 21059 | -5/Factory | Repaired Cmb. Airjet? 21060 | -5/Factory | Repaired Cld. Plasma Cannon 21092 | -5/Factory | Repaired Force Lance 21147 | -5/Factory | Repaired Centrium Medium Armor Plating 21167 | -5/Factory | Repaired Antigrav System? 21188 | -5/Factory | Repaired Antigrav Array 21212 | -5/Factory | Repaired Imp. Deuterium Engine 21268 | -5/Factory | Repaired Centrium Medium Armor Plating 21268 | -5/Factory | Repaired Adv. Sensor Array? 21283 | -5/Factory | Build established: Wizard-Mutant 21318 | -5/Factory | Repaired Adv. KE Penetrator 21354 | -5/Factory | Identified exit to Factory 21675 | -5/Factory | Incoming investigation squad redirected 21703 | -5/Factory | Fabricated Adv. Hacking Suite (x1) 21967 | -5/Factory | Garrison activated, responded to threat 22176 | -5/Factory | System corruption reached 10% 22246 | -5/Factory | Core integrity fell below 50% 22504 | -5/Factory | Repaired Cmb. Airjet 22572 | -5/Factory | Repaired Antigrav Array 22630 | -5/Factory | Repaired Adv. System Restoration Module 22689 | -5/Factory | Repaired Antigrav System 22798 | -5/Factory | Repaired Centrium Medium Armor Plating 22879 | -5/Factory | Repaired Shock Maul? 22923 | -5/Factory | Repaired Centrium Medium Armor Plating 23024 | -5/Factory | Repaired Adv. Sensor Array? 23062 | -5/Factory | Repaired Scatter Rocket Array 23090 | -5/Factory | Repaired Cld. Plasma Cannon? 23336 | -5/Factory | Build established: Wizard-Scout 23675 | -5/Factory | Build established: Hacker-Scout 23728 | -5/Factory | Fabricated Adv. Hacking Suite (x1) 23819 | -5/Factory | Entered Upper Caves 23819 | -5/Upper Caves | Accompanied by 1 ally 24120 | -5/Upper Caves | Encountered a Warlord checkpoint 24753 | -5/Upper Caves | Discovered new exit (range 7) 24757 | -5/Upper Caves | Identified exit to Upper Caves 25375 | -5/Upper Caves | Build established: Hacker-Mutant 25438 | -5/Upper Caves | Entered another Upper Caves area 25438 | -5/Upper Caves | Accompanied by 1 ally 25496 | -5/Upper Caves | Discovered exit to Factory (range 13) 25651 | -5/Upper Caves | Identified exit to Warlord 25696 | -5/Upper Caves | Spotted B-75 Beast 25740 | -5/Upper Caves | Build established: Hacker-Scout 26520 | -5/Upper Caves | Build established: Hacker-Mutant 27098 | -5/Upper Caves | Learned location of 1 exit from Upper Caves 27355 | -5/Upper Caves | Attracted the attention of an 0b10 checkpoint 27503 | -5/Upper Caves | 1C-UTU showed up to help 27506 | -5/Upper Caves | 1C-UTU revealed a hidden path 27650 | -5/Upper Caves | Entered Warlord 27650 | -5/Warlord | Accompanied by 3 allies 27798 | -5/Warlord | Received a Watcher feed algorithm from an ecstatic Tinkerer 27900 | -5/Warlord | Met Warlord 27908 | -5/Warlord | Opened Warlord's prototype stash 27913 | -5/Warlord | Found Prototype Device 27913 | -5/Warlord | Identified System Purifier 27921 | -5/Warlord | Found Prototype Device 27921 | -5/Warlord | Identified Exp. Phase Shifter 27925 | -5/Warlord | Warlord's base attacked by MAIN.C 27950 | -5/Warlord | Found Prototype Reactor 28024 | -5/Warlord | Found Prototype Energy Gun 28024 | -5/Warlord | Identified Vortex Rail 28275 | -5/Warlord | Warlord forces counterattacked 28323 | -5/Warlord | Spotted Executioner 28356 | -5/Warlord | Spotted Executioner 28362 | -5/Warlord | Spotted Striker 28362 | -5/Warlord | Spotted Executioner 28375 | -5/Warlord | Core integrity fell below 20% 28439 | -5/Warlord | Destroyed Striker 28469 | -5/Warlord | Lost 3 parts (2n1u) 28493 | -5/Warlord | Discovered new exit (range 9) 28499 | -5/Warlord | Identified exit to Proximity Caves 28500 | -5/Warlord | Entered Proximity Caves 29084 | -4/Proximity Caves | Learned Research trap positions 29183 | -4/Proximity Caves | Acquired the password to a Derelict Tinkerer's latest research 29189 | -4/Proximity Caves | Found Prototype Special Weapon 29557 | -4/Proximity Caves | Caught by Unaware searching for contraband prototypes 29666 | -4/Proximity Caves | Caught by Unaware searching for contraband prototypes 29706 | -4/Proximity Caves | Lost 3 parts (1n2u) 29709 | -4/Proximity Caves | Destroyed by S-27 Virus with Autogun Last Messages --------------- 29685_ S-27 Virus knocked back. 29685_ Destroyed Lgt. Nuclear Core. 29685_ S-27 Virus system corrupted by crushing effect. 29685_ S-27 Virus destroyed. 29686_ S-27 Virus system terminally corrupted. 29686_ VTOL Module fried. 29688_ S-27 Virus suffers critical hit (Smash). 29688_ S-27 Virus destroyed. 29691_ Acquired 26 matter. 29696_ Lgt. Nuclear Core fries itself beyond repair. 29696_ Autogun fries itself beyond repair. 29696_ Destroyed Core Analyzer. 29696_ X-62 Marksman system corrupted by crushing effect. 29696_ X-62 Marksman knocked back. 29699_ Penetrated by Slug. 29700_ System corrupted: Component data lost. 29705_ Penetrated by Slug. 29708_ Critical hit (Burn: +37). 29708_ Mic. Fission Core destroyed. 29708_ Insulated Plating destroyed. Map ----- +----------------------------------------------------+ | """# #??????????????????????????????????????? | | """# ###????????????????????????????????????? | | * """# #?????????????????????????????????????? | | # #?###?????????????????????????????????? | | "# ## ##?#??????????????????????????????? | | "# #????????????????????????????????? | | ##???????????????????????????????? | | [ # ##??????????????????????????????? | | #+##+## # #?????????????????????????? | | [ ## #### ????????????????????????? | | #? ##??##? ?????????????????????????? | | ### #####? #####??##???????????????????????????? | | #?# ##?????#########? ???????? ????????????????? | | #?#####?#???## ? ?? ????? ??????????????? | | ############# ?????? ??????????????? | | #### #### ??????? ???????????????? | | ###### ## #?# #????#??? #???????????????? | | ?##?## # ### #?#????? #####???????????? | | ##### ## #??????? ##??????????? | | #### ## #### ?? #??????????? | | ## ## ##??? #??????????? | | # ### s #?? ? #??????????? | | # ##?# ##??? #???????????? | | ## ###?# ### #???????????? | | ## ##### sss ## #???????????? | | ## ## ##### s@ #???????????? | | ### ### #### x #??????????? | | ##"### ### s ????????? | | #"#### % % ?????????? | | %###### ## ## ?????????? | | [ ###### #####"## ??????????? | | ###### ######### ??????????? | | # ####### #####?#?### ??????????? | | # "####### ######?????? ## ???????????? | | ## ### ###??#???????# ##?? ???????????? | | ## "" #### ##?##?###?#????####????#????????????? | | ##"" "#################??????????????????????????? | | ##" "########?#####?#??????????????????????????? | | ##" "#############?#???????????????????????????? | | ## "###########??#????????????????????????????? | | # ####?########?##?#??????????????????????????? | | #############?##????????????????????????????? | | ################?##??????????????????????????? | | #################????????????????????????????? | | # ################?##?#????????????????????????? | | ## ##############?#??#?#???????????????????????? | | ## ###############?????????????????????????????? | | ## ############?##?????#??????????????????????? | | #### ####?#####?###??????????????????????????? | | #?## #######??##??#?????????????????????????? | +----------------------------------------------------+ Best States ------------- Heat Dissipation 67 Energy Generation 21 Energy Capacity 500 Matter Stores 300 Matter Capacity 600 Sight Range 16 Robot Scan Range 16 Terrain Scan Range 24 Terrain Scan Density 10 Armor Coverage 600 Resistance: KI 30 Resistance: TH 15 Resistance: EM 15 Core Shielding 30 Weapon Shielding 33 Evasion (%) 56 Targeting Accuracy 10 Melee Accuracy 8 Recoil Reduction 2 Offensive Hacking 50 Defensive Hacking 26 Authchip Count 1 Trap Extractor Capacity 6 Item Schematics ----------------- Aerolev Unit | -8/Materials | Scanalyzed Hacking Suite | -8/Materials | Scanalyzed Tesla Rifle | -7/Factory | Hacked Cld. Particle Cannon | -7/Factory | Scanalyzed Plasma Flamer | -7/Factory | Scanalyzed Imp. Cooling System | -7/Factory | Scanalyzed Imp. Sensor Array | -7/Factory | Scanalyzed Imp. Hacking Suite | -7/Factory | Hacked Machine Analyzer | -7/Factory | Scanalyzed System Restoration Module | -7/Factory | Hacked Combat Drone Bay | -7/Data Miner | Free Lgt. Regenerative Plating | -7/Data Miner | Free Biomechanical Wings | -7/Data Miner | Free Exp. Targeting Computer | -7/Data Miner | Free Shock Maul | -7/Data Miner | Free Nuclear Pulse Array | -7/Data Miner | Free Adv. System Restoration Module | -7/Data Miner | Free Coil Gun | -7/Data Miner | Free Hyp. Mass Driver | -7/Data Miner | Free Ion Burst Cannon | -6/Factory | Scanalyzed Lrn. Terrain Scanner | -6/Factory | Scanalyzed Prc. Matter Filter | -6/Factory | Scanalyzed Imp. Lightning Gun | -6/Factory | Scanalyzed Cmb. Airjet | -6/Factory | Scanalyzed Adv. Sensor Array | -6/Factory | Scanalyzed Scatter Rocket Array | -6/Factory | Scanalyzed Enh. Nuclear Core | -6/Factory | Scanalyzed Force Lance | -6/Factory | Scanalyzed Structural Scanner | -6/Factory | Scanalyzed Imp. Trap Extractor | -6/Factory | Scanalyzed Cld. Plasma Cannon | -6/Factory | Scanalyzed Med. Reflective Plating | -6/Factory | Scanalyzed F-cell Engine | -6/Factory | Scanalyzed Adv. Hacking Suite | -5/Factory | Hacked Adv. System Shield | -5/Factory | Hacked Exp. Thermal Generator | -5/Factory | Hacked Antigrav Array | -5/Factory | Scanalyzed Centrium Medium Armor Plating | -5/Factory | Scanalyzed Lgt. Fission Core | -5/Factory | Scanalyzed Lgt. Antimatter Reactor | -5/Factory | Hacked Robot Schematics ------------------ H-55 Commando | -7/Factory | Hacked H-66 Slayer | -7/Data Miner | Free W-25 Informer | -7/Data Miner | Free R-10 Processor | -7/Data Miner | Free G-50 Soldier | -7/Data Miner | Free Fabricated ------------ L-41 Fighter | x3 | -7/Factory | Preloaded H-55 Commando | x2 | -7/Factory Cmb. Airjet | x2 | -6/Factory Cmb. Airjet | x2 | -6/Factory Lgt. Regenerative Plating | x1 | -6/Factory Adv. Hacking Suite | x1 | -5/Factory Adv. Hacking Suite | x1 | -5/Factory Alien Tech Used ----------------- None Achievements -------------- None Challenges ------------ None Game ------ Seed GhostMomentumCompressor Manual? 0 Play Time 05:34:57 Cumulative 434.3 hours Start 2022.06.24 @ 02:05:25 End 2022.06.24 @ 23:30:09 Sessions 7 Manual Loads 0 Difficulty Rogue Special Mode None Game No. 111 Rogue 111 Adventurer 0 Explorer 0 Win Type - Total 20 Types 15/1/3/0/0/0/0/1/0 Lore% 91 Gallery% 92 Achievement% 78 Wizard Run 0 Options --------- ASCII 0 Keyboard 0 Movement Numpad Keybinds 0 Fullscreen 1 Font 14/SmallcapsGlow Map View 84x54 Tactical HUD 1 Map Filters NONE Filters NONE Steam 1 RUN: 443a09b5-127c-4bf5-bd1f-5daf9476fe18